Cogmind - Beta 9.6 @@@ ROGUE MODE // 2020.05.04 @ 12:36:49 Player: mr_sack Result: Destroyed by S-27 Virus with Autogun Performance ------------- Evolutions (3) 1500 Regions Visited (6) 1200 Robots Destroyed (93) 465 Value Destroyed (2276) 2276 Prototype IDs (4) 80 Alien Tech Used (0) 0 Bonus (247) 247 TOTAL SCORE: 5768 Bonus ------- High Alert Combat Kills 170 Follower Combat Kills 77 Cogmind --------- Core Integrity 0/700 Matter 43/300 Energy 89/100 System Corruption 0% Temperature Cool (0) Movement Core (350) Ox6 Location -7/Factory Parts ------- > --- POWER (1) -------- (None) > --- PROPULSION (4) --- (None) > --- UTILITY (4) ------ Large Storage Unit Advanced Visual Processing Unit Advanced Signal Interpreter Makeshift Terrain Scan Processor > --- WEAPON (4) ------- Enhanced Autogun > --- INVENTORY (10) --- Aluminum Leg Seismic Analyzer Peak State ------------ > --- POWER ------------ Reinforced Ion Engine > --- PROPULSION ------- Aluminum Leg Aluminum Leg Carbon-fiber Leg Aerolev Unit > --- UTILITY ---------- Large Storage Unit Small Matter Pod Signal Interpreter Makeshift Terrain Scan Processor > --- WEAPON ----------- EM Pulse Cannon Enhanced Autogun Enhanced Autogun Missile Launcher > --- INVENTORY -------- Ion Engine Aluminum Leg Carbon-fiber Leg Advanced Visual Processing Unit Seismic Analyzer Gauss Rifle Flak Cannon Flak Cannon Flak Cannon Missile Launcher [Rating: 34] Favorites ----------- Power Ion Engine Engine Ion Engine Propulsion Aluminum Leg Leg Aluminum Leg Hover Unit Aerolev Unit Utility Improved Terrain Scanner Device Improved Terrain Scanner Storage Large Storage Unit Processor Targeting Computer Weapon Grenade Launcher Energy Gun Particle Gun Energy Cannon EM Pulse Cannon Ballistic Gun Enhanced Autogun Ballistic Cannon Flak Cannon Launcher Grenade Launcher Build | -11 -10 -10 -10 -9 -8 -7 ------- Run | Scr Mat Min Exi Min Mat Fac Slots Evolved 6 | . . . . . 4 2 Power . | . . . . . . . Propulsion 2 | . . . . . 2 . Utility 2 | . . . . . 1 1 Weapon 2 | . . . . . 1 1 Parts Attached 85 | 10 7 8 1 13 24 22 Power 4 | 1 . . . 2 . 1 Engine 4 | 1 . . . 2 . 1 Core . | . . . . . . . Reactor . | . . . . . . . Propulsion 22 | 2 . 2 . 2 8 8 Treads . | . . . . . . . Leg 21 | 2 . 2 . 2 8 7 Wheel . | . . . . . . . Hover 1 | . . . . . . 1 Flight . | . . . . . . . Utility 15 | 4 1 3 1 1 1 4 Device 5 | 2 . 2 . 1 . . Storage 5 | 2 1 . 1 . . 1 Processor 5 | . . 1 . . 1 3 Hackware . | . . . . . . . Protection . | . . . . . . . Artifact . | . . . . . . . Weapon 44 | 3 6 3 . 8 15 9 Energy Gun 6 | 1 2 2 . 1 . . Energy Cannon 1 | . . . . . . 1 Ballistic Gun 17 | 2 2 . . 4 6 3 Ballistic Cannon 6 | . . . . . 2 4 Launcher 14 | . 2 1 . 3 7 1 Special Weapon . | . . . . . . . Impact Weapon . | . . . . . . . Slashing Weapon . | . . . . . . . Piercing Weapon . | . . . . . . . Special Melee Weapon . | . . . . . . . Unidentified Prototypes 2 | . . . . . 1 1 Parts Lost 24 | . 1 . . 4 2 17 Power 3 | . . . . 1 . 2 Propulsion 7 | . . . . . 1 6 Utility 3 | . . . . 1 1 1 Weapon 11 | . 1 . . 2 . 8 Highest Loss Streak 10 | . 1 . . 4 1 10 Average Slot Usage (%) 98 | . 99 100 100 98 99 90 Engine 12 | . 14 14 14 13 9 6 Leg 29 | . 28 28 28 28 35 27 Device 6 | . 14 12 . 6 9 . Storage 12 | . 14 14 14 14 9 9 Processor 8 | . . 1 14 7 8 17 Energy Gun 7 | . 4 14 14 8 . . Ballistic Gun 9 | . 15 10 . 6 19 6 Ballistic Cannon 2 | . . . . . 3 11 Launcher 8 | . 7 3 14 12 3 6 Naked Turns . | . . . . . . . Heaviest Build 51 | 14 19 20 27 34 42 51 Greatest Support 50 | 20 20 20 20 20 50 50 Greatest Overweight (x) 10 | 1 . . 1 1 1 10 Average Overweight (x) . | . . . . . . . Largest Inventory Capacity 10 | 6 8 8 10 10 10 10 Average Capacity 8 | 5 7 8 8 10 10 10 Most Carried 10 | 6 7 8 10 10 10 10 Average Carried 7 | 3 6 7 8 9 9 7 Final Capacity 10 | 6 8 8 10 10 10 10 Final Carried 10 | 6 6 8 10 10 10 2 Class Distribution -------------------- 50% | Mutant 16% | Scavenger-Mutant 15% | Scavenger-Skirmisher 13% | Commander-Mutant 3% | Scavenger-Bomber Dominant Class ---------------- Mutant | -10/Materials Mutant | -10/Mines Mutant | -10/Exiles Commander-Mutant | -9/Mines Scavenger-Skirmisher | -8/Materials Scavenger-Mutant | -7/Factory Resources | -11 -10 -10 -10 -9 -8 -7 ----------- Run | Scr Mat Min Exi Min Mat Fac Matter Collected 2413 | 445 234 182 . 261 621 670 Remotely . | . . . . . . . Salvage Created 2489 | 220 175 201 . 348 748 797 Parts 164 | 17 13 20 . 16 49 49 Haulers Intercepted 3 | . 2 . . . . 1 Recyclers Shooed 7 | . 1 . . 1 2 3 Parts Field Recycled . | . . . . . . . Retrieved Matter . | . . . . . . . Parts Self-Destructed . | . . . . . . . Prevented . | . . . . . . . Kills | -11 -10 -10 -10 -9 -8 -7 ------- Run | Scr Mat Min Exi Min Mat Fac Combat Hostiles Destroyed 53 | . 6 8 . 6 20 13 Guns 24 | . 6 5 . 3 9 1 Cannons 7 | . . . . . 3 4 AOE 22 | . . 3 . 3 8 8 Classes Destroyed 12 | 3 3 2 . . 3 1 Worker 9 | 2 1 . . 1 1 4 Builder 10 | . . 1 . . 3 6 Tunneler 8 | 5 1 1 . 1 . . Hauler 3 | . 2 . . . . 1 Recycler 7 | 1 . . . 2 . 4 Operator 1 | . . . . . . 1 Watcher 2 | . 1 . . . 1 . Swarmer 15 | . 6 5 . . 4 . Grunt 32 | . . 3 . 6 13 10 Duelist 2 | . . . . . 1 1 Sentry 1 | . . . . . 1 . Hunter 3 | . . . . . 1 2 Best Kill Streak 9 | 2 3 4 . 3 9 8 Combat Bots Only 6 | . 3 3 . 3 5 6 Max Kills in Single Turn 6 | 1 2 2 . 2 2 6 Gunslinging . | . . . . . . . Exploded 3 | . . 2 . 2 2 3 Melee . | . . . . . . . Uniques/NPCs Destroyed . | . . . . . . . Combat | -11 -10 -10 -10 -9 -8 -7 -------- Run | Scr Mat Min Exi Min Mat Fac Damage Taken 3909 | . 161 246 . 440 760 2302 Core 952 | . 56 43 . 44 101 708 Absorbed by Shields . | . . . . . . . Core Remaining (%) 74 | 100 . . . 42 81 . Volleys Fired 186 | 19 36 20 . 16 54 41 Largest 4 | 2 2 2 . 2 3 4 Hottest 187 | 60 85 95 . 110 105 187 Shots Fired 413 | 38 58 40 . 24 152 101 Gun 275 | 38 45 38 . 21 118 15 Cannon 104 | . . . . . 21 83 Launcher 34 | . 13 2 . 3 13 3 Special . | . . . . . . . Kinetic 308 | 19 34 18 . 12 139 86 Thermal 42 | 19 9 7 . 7 . . Explosive 34 | . 13 2 . 3 13 3 Electromagnetic 29 | . 2 13 . 2 . 12 Robot Hit Streak 11 | 6 11 9 . 8 5 7 Robot Miss Streak 8 | 2 3 3 . 2 4 8 Penetration Max 1 | . . . . . . 1 Secondary Targets 1 | . . 1 . . . . Max Gunslinging Chain 1 | . . 1 . . . . Shots Hit Robots 238 | 24 27 20 . 17 78 72 Core Hits 195 | 9 19 18 . 20 56 73 Critical Hits 2 | . . . . . 1 1 Critical Kills 2 | . . . . . 1 1 Critical Parts Destroyed . | . . . . . . . Melee Attacks . | . . . . . . . Impact . | . . . . . . . Slashing . | . . . . . . . Piercing . | . . . . . . . Sneak Attacks . | . . . . . . . Combat Hostiles . | . . . . . . . Follow-up Attacks . | . . . . . . . Damage Inflicted 6788 | 275 524 484 . 660 2201 2644 Guns 2409 | 275 323 275 . 292 1095 149 Cannons 1291 | . . . . . 220 1071 Explosions 3075 | . 201 209 . 368 886 1411 Melee . | . . . . . . . Ramming 13 | . . . . . . 13 Kinetic 2982 | 131 221 106 . 197 1315 1012 Thermal 354 | 144 70 42 . 56 . 42 Explosive 2970 | . 201 209 . 368 823 1369 Electromagnetic 469 | . 32 127 . 39 63 208 Impact . | . . . . . . . Slashing . | . . . . . . . Piercing . | . . . . . . . Highest Corruption 13 | . . . . 13 . . Average Corruption 13 | . . . . 13 . . Corruption Purged . | . . . . . . . Effects 14 | . . . . 14 . . Message Errors 7 | . . . . 7 . . Matter Fused 2 | . . . . 2 . . Heat Flow Errors 1 | . . . . 1 . . Data Loss (major) 1 | . . . . 1 . . Misdirections 1 | . . . . 1 . . Targeting Errors 1 | . . . . 1 . . Weapon Failures 1 | . . . . 1 . . Overload Shots . | . . . . . . . Overflow Damage 138 | . . . . 29 9 100 Projectiles . | . . . . . . . Explosions 138 | . . . . 29 9 100 Melee . | . . . . . . . Knockbacks 30 | . . . . . 3 27 Impact 1 | . . . . . . 1 Kinetic 28 | . . . . . 3 25 Secondary 1 | . . . . . . 1 Self-Inflicted Damage 269 | . . . . . 13 256 Shots 7 | . . . . . 1 6 Rammed 1 | . . . . . . 1 Targets Rammed 3 | . . . . . . 3 Kicked 2 | . . . . . . 2 Crushed . | . . . . . . . Highest Temperature 247 | . 48 156 . 103 225 247 Average Temperature 63 | . 15 40 . 37 79 69 Received Heat Transfer 765 | . . 87 . 93 225 360 Siege Activations . | . . . . . . . Robots Corrupted . | . . . . . . . Combat Hostiles . | . . . . . . . Parts Fried 3 | . 1 . . . . 2 Impact Corruptions . | . . . . . . . Robots Melted . | . . . . . . . Combat Hostiles . | . . . . . . . Parts Melted . | . . . . . . . Heat Transferred 759 | 325 125 111 . 148 . 50 Parts Sabotaged . | . . . . . . . Parts Stolen . | . . . . . . . Parts Stripped . | . . . . . . . Power Chain Reactions 1 | . . . . . . 1 Missiles Intercepted . | . . . . . . . Alert | -11 -10 -10 -10 -9 -8 -7 ------- Run | Scr Mat Min Exi Min Mat Fac Peak Influence 603 | 40 201 126 . 96 584 603 Average Influence 172 | 18 97 72 . 30 313 414 Maximum Alert Level 2 | . 1 . . . 2 2 Low Security (%) 71 | 100 92 100 . 100 30 23 Level 1 12 | . 7 . . . 35 15 Level 2 16 | . . . . . 33 60 Level 3 . | . . . . . . . Level 4 . | . . . . . . . Level 5 . | . . . . . . . High Security . | . . . . . . . Max Security . | . . . . . . . Squads Dispatched 11 | . 1 . . . 4 6 Investigation . | . . . . . . . Extermination . | . . . . . . . Reinforcement 10 | . 1 . . . 4 5 Assault 1 | . . . . . . 1 Garrison . | . . . . . . . Intercept . | . . . . . . . Construction Impeded 3 | . . . . . 2 1 Haulers Reinforced 1 | . . . . . . 1 Stealth | -11 -10 -10 -10 -9 -8 -7 --------- Run | Scr Mat Min Exi Min Mat Fac Distress Signals 3 | . . . . . 3 . Communications Jammed . | . . . . . . . Distress Signals . | . . . . . . . Times Spotted 93 | . 14 9 . 9 32 29 Peak Tracking Total 8 | . 3 3 . 3 6 8 Tactical Retreats 3 | . 2 . . . 1 . Traps | -11 -10 -10 -10 -9 -8 -7 ------- Run | Scr Mat Min Exi Min Mat Fac Traps Triggered 2 | . 1 . . . . 1 Indirectly . | . . . . . . . Trap Hack Attempts . | . . . . . . . Triggered . | . . . . . . . Disarmed . | . . . . . . . Reprogrammed . | . . . . . . . Reused 1 | . . . . . 1 . Traps Extracted . | . . . . . . . Installed 1 | . . . . . 1 . Triggered 1 | . . . . . 1 . Machines | -11 -10 -10 -10 -9 -8 -7 ---------- Run | Scr Mat Min Exi Min Mat Fac Machines Disabled 17 | . 5 . . 1 5 6 Max in Single Turn 2 | . 2 . . . 2 2 Machines Sabotaged . | . . . . . . . Garrisons Compromised . | . . . . . . . Overloaded Fab Kills . | . . . . . . . Fab Network Shutdowns . | . . . . . . . Hacking | -11 -10 -10 -10 -9 -8 -7 --------- Run | Scr Mat Min Exi Min Mat Fac Machines Accessed 8 | . 4 . . . 3 1 Terminals 8 | . 4 . . . 3 1 Fabricators . | . . . . . . . Repair Stations . | . . . . . . . Recycling Units . | . . . . . . . Scanalyzers . | . . . . . . . Garrison Access . | . . . . . . . Total Hacks 19 | . 13 . . . 4 2 Successful 6 | . 5 . . . . 1 Failed 13 | . 8 . . . 4 1 Catastrophic 4 | . 2 . . . 1 1 Database Lockouts . | . . . . . . . Manual 10 | . 5 . . . 3 2 Terminals 19 | . 13 . . . 4 2 Fabricators . | . . . . . . . Repair Stations . | . . . . . . . Recycling Units . | . . . . . . . Scanalyzers . | . . . . . . . Garrison Access . | . . . . . . . Terminal Hacks 6 | . 5 . . . . 1 Prototype ID Bank 1 | . 1 . . . . . Level Access Points 1 | . . . . . . 1 Branch Access Points 1 | . 1 . . . . . Registered Components 1 | . 1 . . . . . Zone Layout 2 | . 2 . . . . . Fabricator Hacks . | . . . . . . . Repair Station Hacks . | . . . . . . . Recycling Unit Hacks . | . . . . . . . Scanalyzer . | . . . . . . . Garrison Access Hacks . | . . . . . . . Unauthorized Hacks . | . . . . . . . Terminals . | . . . . . . . Fabricators . | . . . . . . . Repair Stations . | . . . . . . . Recycling Units . | . . . . . . . Scanalyzers . | . . . . . . . Garrison Access . | . . . . . . . Data Cores Recovered . | . . . . . . . Used . | . . . . . . . Hacking Detections 8 | . 4 . . . 3 1 Full Trace Events . | . . . . . . . Feedback Events . | . . . . . . . Feedback Blocked . | . . . . . . . Robot Schematics Acquired . | . . . . . . . Robots Built . | . . . . . . . Matter . | . . . . . . . Time . | . . . . . . . Total Robot Build Rating . | . . . . . . . Part Schematics Acquired . | . . . . . . . Parts Built . | . . . . . . . Matter . | . . . . . . . Time . | . . . . . . . Total Part Build Rating . | . . . . . . . Parts Repaired . | . . . . . . . Time . | . . . . . . . Parts Recycled . | . . . . . . . Recycled Matter . | . . . . . . . Retrieved Matter . | . . . . . . . Retrieved Components . | . . . . . . . Parts Scanalyzed . | . . . . . . . Part Schematics Acquired . | . . . . . . . Parts Damaged . | . . . . . . . Bothacking | -11 -10 -10 -10 -9 -8 -7 ------------ Run | Scr Mat Min Exi Min Mat Fac Used RIF Installer . | . . . . . . . Robots Hacked . | . . . . . . . Non-combat . | . . . . . . . Combat . | . . . . . . . Robot Hacks Applied . | . . . . . . . Relay Couplers Released . | . . . . . . . Robots Rewired 4 | . . . 4 . . . Allies Hacked . | . . . . . . . Hacks Repelled . | . . . . . . . Allies | -11 -10 -10 -10 -9 -8 -7 -------- Run | Scr Mat Min Exi Min Mat Fac Total Allies 4 | . . . 4 . . . Largest Group 4 | . . . 4 4 . . Highest-Rated Group 45 | . . . 45 45 . . Highest-Rated Ally 21 | . . . 21 21 . . Total Orders 3 | . . . 2 1 . . GUARD 3 | . . . 2 1 . . Ally Attacks 19 | . . . . 19 . . Total Damage 236 | . . . . 236 . . Kills 3 | . . . . 3 . . Allies Corrupted 1 | . . . . 1 . . Allies Melted . | . . . . . . . Intel | -11 -10 -10 -10 -9 -8 -7 ------- Run | Scr Mat Min Exi Min Mat Fac Robot Analysis Total . | . . . . . . . Derelict Logs Recovered 4 | . . 1 . 3 . . Drone Launches . | . . . . . . . Drone Recoveries . | . . . . . . . Exploration | -11 -10 -10 -10 -9 -8 -7 ------------- Run | Scr Mat Min Exi Min Mat Fac Turns Passed 4618 | 348 836 543 1069 490 823 509 Spaces Moved 3001 | 230 601 379 747 269 509 266 Core 10 | 8 . . . . . 2 Treads . | . . . . . . . Legs 2991 | 222 601 379 747 269 509 264 Wheels . | . . . . . . . Hover . | . . . . . . . Flight . | . . . . . . . Fastest Speed 50 | 50 120 120 120 120 120 120 Average Speed 125 | 119 120 120 127 149 120 132 Slowest Speed 550 | 150 120 120 150 150 150 550 Overloaded Moves . | . . . . . . . Propulsion Burnouts . | . . . . . . . Robots Hopped . | . . . . . . . Cave-ins Triggered 1 | . . . . 1 . . Exploration Rate (%) 48 | 9 69 73 91 54 33 8 Regions Visited 6 Branch Regions 3 Pre-discovered Areas 1 | . . . . 1 . . Known Exits Taken 3 | . 1 . 1 1 . . Unknown Exits Taken 3 | 1 . 1 . . 1 . Scrap Searched 2 | . . 2 . . . . Spaces Dug 7 | . 7 . . . . . Terrain Destroyed 377 | . 154 16 . 22 106 79 Melee . | . . . . . . . Projectile 1 | . . . . . 1 . AOE 376 | . 154 16 . 22 105 79 Actions | -11 -10 -10 -10 -9 -8 -7 --------- Run | Scr Mat Min Exi Min Mat Fac Total 3521 | 262 661 428 866 333 630 341 Wait 71 | . 5 12 . 24 25 5 Move 2995 | 229 600 378 746 268 508 266 Hop . | . . . . . . . Pick Up 29 | 3 5 4 2 6 8 1 Fast Attach 15 | 8 2 . . . 1 4 Attach 18 | . . . . 4 4 10 Detach 2 | 1 1 . . . . . Swap 52 | 2 5 8 1 9 19 8 Drop 33 | . 7 6 1 6 10 3 Fire 186 | 19 36 20 . 16 54 41 Melee . | . . . . . . . Ram . | . . . . . . . Kick 3 | . . . . . . 3 Crush . | . . . . . . . Escape Stasis . | . . . . . . . Rewire 116 | . . . 116 . . . Trap 1 | . . . . . 1 . Miscellaneous . | . . . . . . . Route ------- -11/Scrapyard -10/Materials (discovered 3 exits: [*Mat] / *Min x2) -10/Mines (discovered 3 exits: [*Mat x2] / *Exi) -10/Exiles (discovered 2 exits: *Min x2) -9/Mines -8/Materials -7/Factory (discovered 4 exits: *Fac x4) History --------- Turn | Location | Event 23 | -11/Scrapyard | Discovered new exit (range 16) 349 | -11/Scrapyard | Entered Materials 350 | -10/Materials | Build established: Mutant 514 | -10/Materials | Identified exit to Mines 836 | -10/Materials | Discovered new exit (range 15) 1185 | -10/Materials | Entered Mines 1204 | -10/Mines | Discovered new exit (range 12) 1377 | -10/Mines | Excavation squad dispatched 1377 | -10/Mines | A large section of the Mines collapsed 1547 | -10/Mines | Assisted by bots powering up and referring to "LRC-V3" 1593 | -10/Mines | Discovered new exit (range 9) 1676 | -10/Mines | Found a hidden stash of uninstalled traps 1720 | -10/Mines | Deemed a non-threat by the Exiles lab entrance 1721 | -10/Mines | Discovered new exit (range 5) 1728 | -10/Mines | Entered Exiles 1728 | -10/Exiles | Found Exiles lab destroyed 1729 | -10/Exiles | Identified exit to Mines 2774 | -10/Exiles | Build established: Commander-Mutant 2797 | -10/Exiles | Entered Mines 2797 | -9/Mines | Accompanied by 4 allies 2875 | -9/Mines | Identified exit to Materials 3069 | -9/Mines | Crushed by falling debris 3069 | -9/Mines | Core integrity fell below 50% 3069 | -9/Mines | System corruption reached 10% 3100 | -9/Mines | Lost 4 parts (1p1u2w) 3275 | -9/Mines | Learned Materials stockpile data 3287 | -9/Mines | Entered Materials 3287 | -8/Materials | Evolved 4 slots: Propulsion x2, Utility x1, Weapon x1 3592 | -8/Materials | Discovered new exit (range 12) 3927 | -8/Materials | Build established: Scavenger-Skirmisher 4110 | -8/Materials | Entered Factory 4110 | -7/Factory | Evolved 2 slots: Utility x1, Weapon x1 4242 | -7/Factory | Build established: Scavenger-Mutant 4309 | -7/Factory | Identified exit to Factory 4378 | -7/Factory | Lost 6 parts (1p2n1u2w) 4510 | -7/Factory | First assault squad dispatched 4603 | -7/Factory | Core integrity fell below 50% 4614 | -7/Factory | Core integrity fell below 20% 4619 | -7/Factory | Destroyed by S-27 Virus with Autogun Last Messages --------------- 04592_ Penetrated by Slug. 04592_ Flak Cannon destroyed. 04594_ Aluminum Leg destroyed. 04595_ U-05 Engineer lays Concrete. 04596_ Gauss Rifle destroyed. 04598_ Flak Cannon destroyed. 04598_ Ion Engine destroyed. 04602_ L-41 Fighter knocked back. 04603_ Penetrated by Slug. 04604_ L-41 Fighter knocked back. 04606_ Penetrated by Slug. 04606_ L-41 Fighter knocked back. 04606_ L-41 Fighter destroyed. 04609_ Flak Cannon destroyed. 04610_ C-30 ARC bursts open, deploying its payload. 04610_ S-27 Virus unfolds itself. 04611_ U-05 Engineer builds a Door. 04614_ G-47 Trooper destroyed. 04619_ Enh. Autogun destroyed. 04619_ K-01 Serf collects debris. Map ----- +----------------------------------------------------+ | ???????????????????# ??????????????????? | | ???????????????????# ???????????????????? | | ???????????????????# #???????????????????? | | ??????###??????????? ###+###?????????????? | | ??????# !????????????# # ??????????????? | | ??????# ???????????# # ??????????????? | | ??????# ??????????# # " "???????????????? | | ??????# ??????????# # "Y"???????????????? | | ??+???# ?????????# # ""????????????????? | | ??# ## ?????????# # ????????#???????? | | ??# ## % ????????# ##+######## #???????? | | ??# # = ######### / +???????? | | ??+ #???????? | | ??# |*= ! """ #???????? | | ??# %! ! ### """ #???????? | | ### = ! #?#! """ #???????? | | ! ! #?# #???????? | | ???# ! "T" ##?# +?????? | | ???# #??# ############?????? | | ???# #### ###??????????????? | | ???# ####### #????#####?????? | | ???# + * s# ######! #?????? | | ???#+####+#####+## #### s/ < #?????? | | ???? # #??# s# ###### #?????? | | ??????"""" """ + #??# k! # #????## ##?????? | | ???# ""T"" """ # #### @ ## ##?????? #??????? | | ???# """ # #### l* ## #??????? #??????? | | ???# [ #[ hm %= ## #??????? ??????? | | ???# ! =*#### g! ## #???????? ??????? | | ################ %[= ## ## #???????? ?????? | | #### # ### ## #???????? #?????? | | ####### ! ###% ## #???????? #?????? | | + + s## #?????????#?????? | | ! #### ##! #######/## #???????????????? | | ####%###+## + #???????????????? | | #??#!## # """ # ######???????????????? | | #??# ##= ! """ # #????????????????????? | | #??# ## !# """ + #????????????????????? | | =!#??# ## # "" ###????????????????????? | | """S""=#??# ## # "" #??????????????????????? | | """""]#??# ## ! #! #??????????????????????? | | ==]] ]#??? ?# #?#####??????????????????????? | | =######??? ?#####????????????????????????????? | | ????? ??????????????????????????????????? | | ? ??????????????????????????????????? | | ????????????????????????????????? | | ???????????????????????????????? | | ????????????????????????????????? | | ####+############????????????????????????????????? | | ?????????????????????????????????????????????????? | +----------------------------------------------------+ Best States ------------- Heat Dissipation 34 Energy Generation 12 Energy Capacity 265 Matter Stores 400 Matter Capacity 400 Sight Range 20 Terrain Scan Range 16 Terrain Scan Density 135 Evasion (%) 40 Targeting Accuracy 5 Item Schematics ----------------- None Robot Schematics ------------------ None Fabricated ------------ Nothing Alien Tech Used ----------------- None Achievements -------------- None Challenges ------------ None Game ------ Seed ChipIntegratedMagmablaster Manual? 0 Play Time 00:52:02 Cumulative 42.5 hours Start 2020.05.04 @ 09:49:31 End 2020.05.04 @ 12:36:49 Sessions 3 Manual Loads 0 Difficulty Rogue Special Mode None Game No. 32 Rogue 27 Adventurer 5 Explorer 0 Win Type - Total 0 Types 0/0/0/0/0/0/0 Lore% 30 Gallery% 32 Achievement% 24 Wizard Run 0 Options --------- ASCII 0 Keyboard 1 Movement Arrows Keybinds 0 Fullscreen 1 Font 24/Smallcaps Map View 113x50 Tactical HUD 1 Map Filters NONE Filters NONE Steam 1 RUN: 2c66dbca-361d-4308-95e7-ba235a06c285